bitfinex/quotes_BTCUSD_20251104
["timestamp","ask_amount","ask_price","bid_price","bid_amount"]
[1762299264518,0.196269,101190.0,101180.0,0.29313998]
[1762299264674,0.222559,101190.0,101180.0,0.29323504]
[1762299264844,0.246739,101190.0,101180.0,0.29323504]
[1762299265280,0.22393798,101190.0,101180.0,0.29323504]
[1762299265499,0.24811798,101190.0,101180.0,0.29323504]
[1762299265687,0.24811798,101190.0,101180.0,0.29923504]
[1762299266520,0.05047,101190.0,101180.0,0.29923504]
[1762299266713,0.01127,101190.0,101180.0,0.31572504]
[1762299266923,0.03545,101200.0,101190.0,0.19764798]
[1762299267046,0.23307845,101200.0,101190.0,0.19764798]
[1762299267270,0.19764798,101190.0,101180.0,0.29923504]
[1762299267539,0.23684798,101190.0,101180.0,0.29923504]
[1762299268740,0.0392,101190.0,101180.0,0.29923504]
[1762299269041,0.01502,101190.0,101180.0,0.29923504]
[1762299269267,0.22809449,101200.0,101190.0,0.19764798]
[1762299269585,0.24311449,101200.0,101190.0,0.19764798]
[1762299270231,0.19764798,101190.0,101180.0,0.29923504]
[1762299270584,0.19764798,101190.0,101180.0,0.31572504]
[1762299270812,0.19764798,101190.0,101180.0,0.34043504]
[1762299271033,0.19764798,101190.0,101180.0,0.33443504]
[1762299271230,0.22809449,101200.0,101190.0,0.19764798]
[1762299271430,0.22809449,101200.0,101190.0,0.20164798]
[1762299271634,0.04548604,101200.0,101190.0,0.19764798]
[1762299271965,0.02130604,101200.0,101190.0,0.21013798]
[1762299272151,0.04400604,101200.0,101190.0,0.21013798]
[1762299272707,0.00628604,101200.0,101190.0,0.25411798]
[1762299273117,0.00628604,101200.0,101190.0,0.23055798]
[1762299274359,0.24210449,101200.0,101190.0,0.20164798]
[1762299274549,0.24210449,101200.0,101190.0,0.004]
[1762299275101,0.24210449,101200.0,101190.0,0.20164798]
[1762299275930,0.24210449,101200.0,101190.0,0.004]
[1762299276601,0.28706731,101200.0,101190.0,0.004]
[1762299276808,1.24375296,101200.0,101190.0,0.004]
[1762299276943,1.28775296,101200.0,101190.0,0.004]
[1762299277953,0.23383026,101190.0,101180.0,0.00032093]
[1762299278158,0.27202026,101190.0,101180.0,0.00032093]
[1762299279602,0.28208545,101190.0,101180.0,0.00032093]
[1762299280442,0.28208545,101190.0,101180.0,0.00432093]
[1762299280841,0.28208545,101190.0,101180.0,0.00032093]
[1762299281042,0.28208545,101190.0,101180.0,0.19998845]
[1762299281221,0.28208545,101190.0,101180.0,0.00032093]
[1762299286354,0.29392545,101190.0,101180.0,0.00032093]
[1762299287901,0.29392545,101190.0,101180.0,0.19798845]
[1762299288224,0.24767798,101190.0,101180.0,0.19798845]
[1762299290245,0.42018228,101200.0,101190.0,0.19764798]
[1762299290455,0.23430192,101210.0,101190.0,0.81736135]
[1762299290671,0.57429893,101210.0,101200.0,0.08536322]
[1762299291119,0.19762845,101200.0,101190.0,0.19764798]
[1762299291332,0.57429893,101210.0,101200.0,0.19762845]
[1762299291766,0.39298,101210.0,101200.0,0.19762845]
[1762299291989,0.02813,101210.0,101200.0,0.19762845]
[1762299292204,0.02813,101210.0,101200.0,0.28299167]
[1762299293010,0.05298,101210.0,101200.0,0.31850771]
[1762299293581,0.19762845,101200.0,101190.0,0.19964781]
[1762299293790,0.19762845,101200.0,101190.0,0.002]
[1762299293791,0.23876845,101200.0,101190.0,0.002]
[1762299293989,0.23876845,101200.0,101180.0,0.3928113]
[1762299294188,0.19764798,101190.0,101180.0,0.3928113]
[1762299294368,0.21393798,101190.0,101180.0,0.3928113]
[1762299294576,0.23878798,101190.0,101180.0,0.3928113]
[1762299295074,0.23878798,101190.0,101180.0,0.3818713]
[1762299295516,0.23878798,101190.0,101180.0,0.3838713]
[1762299295740,0.22247845,101200.0,101190.0,0.19764798]
[1762299296198,0.23876845,101200.0,101190.0,0.19764798]
[1762299296419,0.23876845,101200.0,101190.0,0.23316402]
[1762299296644,0.04114,101200.0,101190.0,0.23316402]
[1762299296862,0.55932937,101210.0,101190.0,0.25990402]
[1762299297089,0.62036165,101210.0,101200.0,0.08536322]
[1762299297315,0.58417937,101210.0,101200.0,0.08536322]
[1762299297518,0.60046937,101210.0,101200.0,0.08536322]
[1762299297967,0.26046937,101210.0,101200.0,0.28299167]
[1762299298415,0.26146937,101210.0,101200.0,0.08536322]
[1762299299458,0.19762845,101200.0,101190.0,0.04645604]
[1762299299628,0.21391845,101200.0,101190.0,0.03551604]
[1762299299815,0.23876845,101200.0,101190.0,0.03551604]
[1762299300414,0.19764798,101190.0,101180.0,0.3818713]
[1762299300595,0.04114,101190.0,101180.0,0.3818713]
[1762299300795,0.02485,101200.0,101190.0,0.19764798]
[1762299301005,0.20944893,101210.0,101200.0,0.19762845]
[1762299301211,0.20944893,101210.0,101200.0,0.29879167]
[1762299301411,0.20944893,101210.0,101200.0,0.10116322]
[1762299301645,0.22573893,101210.0,101200.0,0.28299167]
[1762299301853,0.25058893,101210.0,101200.0,0.08536322]
[1762299302026,0.05298,101210.0,101200.0,0.28299167]
[1762299302235,0.57859214,101220.0,101200.0,0.32220167]
[1762299302430,0.03669,101230.0,101220.0,0.1975894]
[1762299302646,0.19753646,101250.0,101230.0,0.19756989]
[1762299302929,0.19755037,101240.0,101230.0,0.03499]
[1762299303153,0.19755037,101240.0,101230.0,0.20914989]
[1762299303560,0.21432373,101240.0,101230.0,0.19756989]
[1762299303763,0.23917373,101240.0,101230.0,0.19956989]
[1762299304291,0.23917373,101240.0,101220.0,0.38146835]
[1762299304507,0.23917373,101240.0,101230.0,0.002]
[1762299304810,0.23917373,101240.0,101230.0,0.19956989]
[1762299304945,0.00048336,101240.0,101230.0,0.22172989]
[1762299305148,0.00048336,101240.0,101230.0,0.24513989]
[1762299306198,0.00048336,101240.0,101230.0,0.24313989]
[1762299306411,0.00048336,101240.0,101230.0,0.82364326]
[1762299306610,0.00048336,101240.0,101230.0,0.9031193]
[1762299306757,0.00048336,101240.0,101230.0,0.97072348]
[1762299306963,0.00048336,101240.0,101230.0,0.97172348]
[1762299307658,0.00048336,101240.0,101230.0,0.39122011]
[1762299307865,0.00048336,101240.0,101230.0,1.00705032]
[1762299308179,0.00048336,101240.0,101230.0,0.9539301]
[1762299308380,0.00048336,101240.0,101230.0,1.00705032]
[1762299308624,0.00048336,101240.0,101230.0,1.34138159]
[1762299309386,3.36e-06,101240.0,101230.0,1.39536891]
[1762299309582,0.00264642,101280.0,101230.0,1.4053689]
[1762299309814,0.00264642,101280.0,101270.0,0.89073844]
[1762299310018,0.00264642,101280.0,101270.0,0.37760507]
[1762299310461,0.20011877,101280.0,101270.0,0.37760507]
[1762299310666,0.20511877,101280.0,101270.0,0.15670322]
[1762299310819,0.00764642,101280.0,101270.0,0.35419507]
[1762299311030,0.20011877,101280.0,101270.0,0.35429013]
[1762299311230,0.20411877,101280.0,101270.0,0.35429013]
[1762299311451,0.20411877,101280.0,101270.0,0.15679828]
[1762299311660,0.00664642,101280.0,101270.0,0.35429013]
[1762299311838,0.20411877,101280.0,101270.0,0.35429013]
[1762299312867,0.22075877,101280.0,101270.0,0.33849013]
[1762299313087,0.00664642,101280.0,101270.0,0.35407013]
[1762299313292,0.00664642,101280.0,101270.0,0.37904013]
[1762299313505,0.20411877,101280.0,101270.0,0.37904013]
[1762299313702,0.20411877,101280.0,101270.0,0.35407013]
[1762299313933,0.00664642,101280.0,101270.0,0.35407013]
[1762299314084,0.20411877,101280.0,101270.0,0.35407013]
[1762299314491,0.00664642,101280.0,101270.0,0.35407013]
[1762299314747,0.20411877,101280.0,101270.0,0.35407013]
[1762299315682,0.20411877,101280.0,101270.0,0.37904013]
[1762299316094,0.22075877,101280.0,101270.0,0.14099828]
[1762299316319,0.24429877,101280.0,101270.0,0.04405506]
[1762299316495,0.24429877,101280.0,101270.0,0.32691013]
[1762299316676,0.24429877,101280.0,101270.0,0.12941828]
[1762299317132,0.24429877,101280.0,101270.0,0.04405506]
[1762299317374,1.46332065,101280.0,101270.0,9.506e-05]
[1762299317594,1.36376368,101280.0,101270.0,9.506e-05]
[1762299318154,1.39994596,101280.0,101270.0,9.506e-05]
[1762299318775,3.44386596,101280.0,101270.0,9.506e-05]
[1762299319143,3.47181972,101280.0,101270.0,9.506e-05]
[1762299319345,3.54342293,101280.0,101270.0,9.506e-05]
[1762299319659,3.58411079,101280.0,101270.0,9.506e-05]
[1762299320102,3.58011079,101280.0,101270.0,9.506e-05]
[1762299320413,3.49173803,101280.0,101270.0,9.506e-05]
[1762299320622,2.66940105,101280.0,101270.0,9.506e-05]
[1762299320825,0.66940105,101280.0,101270.0,9.506e-05]
[1762299321408,1.44886596,101280.0,101270.0,9.506e-05]
[1762299324563,0.66940105,101280.0,101270.0,9.506e-05]
[1762299324766,1.44886596,101280.0,101270.0,9.506e-05]
[1762299324972,1.54842293,101280.0,101270.0,9.506e-05]
[1762299325334,1.55761002,101280.0,101270.0,9.506e-05]
[1762299326060,1.44886596,101280.0,101270.0,9.506e-05]
[1762299326234,1.48746129,101280.0,101270.0,9.506e-05]
[1762299328588,1.45805435,101280.0,101270.0,9.506e-05]
[1762299328822,1.48746129,101280.0,101270.0,9.506e-05]
[1762299330399,1.45805435,101280.0,101270.0,9.506e-05]
[1762299330548,3.45805435,101280.0,101270.0,9.506e-05]
[1762299330947,3.48746129,101280.0,101270.0,9.506e-05]
[1762299331149,3.50589227,101280.0,101270.0,9.506e-05]
[1762299331921,3.48746129,101280.0,101270.0,9.506e-05]
[1762299332125,0.69703634,101280.0,101270.0,9.506e-05]
[1762299332330,1.47650125,101280.0,101270.0,9.506e-05]
[1762299333043,1.13650125,101280.0,101270.0,9.506e-05]
[1762299333353,0.33858944,101280.0,101270.0,9.506e-05]
[1762299333811,1.45805435,101280.0,101270.0,9.506e-05]
[1762299334042,0.67858944,101280.0,101270.0,9.506e-05]
[1762299334263,1.45805435,101280.0,101270.0,9.506e-05]
[1762299335771,1.60547512,101280.0,101270.0,9.506e-05]
[1762299336022,1.50591815,101280.0,101270.0,9.506e-05]
[1762299337214,1.45805435,101280.0,101270.0,9.506e-05]
[1762299338694,0.63466944,101280.0,101270.0,9.506e-05]
[1762299338918,0.36083481,101280.0,101270.0,0.28295013]
[1762299339139,0.01164642,101280.0,101270.0,0.32318013]
[1762299339357,0.20911877,101280.0,101270.0,0.29839013]
[1762299339581,0.01164642,101280.0,101270.0,0.32318013]
[1762299341119,0.20911877,101280.0,101270.0,0.29839013]
[1762299341335,0.23923877,101280.0,101270.0,0.19758691]
[1762299341547,0.24423877,101280.0,101270.0,9.506e-05]
[1762299342612,0.24423877,101280.0,101270.0,0.19758691]
[1762299342833,0.00764642,101280.0,101270.0,0.21305691]
[1762299343030,0.00764642,101280.0,101270.0,0.23555691]
[1762299343615,0.20511877,101280.0,101270.0,0.23555691]
[1762299343959,0.20511877,101280.0,101270.0,0.21305691]
[1762299344195,0.00764642,101280.0,101270.0,0.23555691]
[1762299344616,0.00764642,101280.0,101270.0,0.21305691]
[1762299344779,0.00764642,101280.0,101270.0,0.23555691]
[1762299345604,0.00764642,101280.0,101270.0,0.27080561]
[1762299346785,0.00764642,101280.0,101270.0,1.05027052]
[1762299346989,0.00764642,101280.0,101270.0,1.11789487]
[1762299347436,0.00264642,101280.0,101270.0,1.11789487]
[1762299347641,0.00464642,101280.0,101270.0,1.11789487]
[1762299347811,0.00464642,101280.0,101270.0,1.45789487]
[1762299348023,0.00264642,101280.0,101270.0,1.45789487]
[1762299348226,0.00264642,101280.0,101270.0,1.40502182]
[1762299348672,0.00264642,101280.0,101270.0,1.41478523]
[1762299348873,0.00264642,101280.0,101270.0,1.46767855]
[1762299349090,0.00264642,101280.0,101270.0,1.46867855]
[1762299352485,0.00264642,101280.0,101270.0,1.50389472]
[1762299352683,0.00264642,101280.0,101270.0,0.61177308]
[1762299352904,0.00264642,101280.0,101270.0,0.65569308]
[1762299353321,0.00264642,101280.0,101270.0,0.25797691]
[1762299353535,0.00264642,101280.0,101270.0,0.28047691]
[1762299354196,0.20011877,101280.0,101270.0,0.28047691]
[1762299354340,0.21653877,101280.0,101270.0,0.00109506]
[1762299354545,0.23923877,101280.0,101270.0,0.00109506]
[1762299354747,0.23923877,101280.0,101270.0,0.19858691]
[1762299355127,0.00264642,101280.0,101270.0,0.23555691]
[1762299355342,0.20011877,101280.0,101270.0,0.23555691]
[1762299355951,0.20011877,101280.0,101270.0,0.21305691]
[1762299356153,0.00264642,101280.0,101270.0,0.23555691]
[1762299357009,0.20011877,101280.0,101270.0,0.23555691]
[1762299357319,0.00264642,101280.0,101270.0,0.23555691]
[1762299357522,0.20011877,101280.0,101270.0,0.23555691]
[1762299358067,0.00264642,101280.0,101270.0,0.23555691]
[1762299360426,0.00264642,101280.0,101270.0,0.27947691]
[1762299362686,0.20011877,101280.0,101270.0,0.27947691]
[1762299363137,0.00264642,101280.0,101270.0,0.27947691]
[1762299363356,0.20011877,101280.0,101270.0,0.27947691]
[1762299363528,0.21653877,101280.0,101270.0,0.04401506]
[1762299363731,0.23923877,101280.0,101270.0,0.04401506]
[1762299363935,0.21653877,101280.0,101270.0,0.04401506]
[1762299364136,0.23923877,101280.0,101270.0,0.04401506]
[1762299364712,0.23923877,101280.0,101270.0,9.506e-05]
[1762299366266,0.57923877,101280.0,101270.0,9.506e-05]
[1762299366473,1.39488596,101280.0,101270.0,9.506e-05]
[1762299366634,1.42606118,101280.0,101270.0,9.506e-05]
[1762299367316,1.42406118,101280.0,101270.0,9.506e-05]
[1762299367679,1.43106118,101280.0,101270.0,9.506e-05]
[1762299368143,1.53061815,101280.0,101270.0,9.506e-05]
[1762299368517,1.43106118,101280.0,101270.0,9.506e-05]
[1762299368899,1.40188596,101280.0,101270.0,9.506e-05]
[1762299371509,0.62242105,101280.0,101270.0,9.506e-05]
[1762299371712,1.40188596,101280.0,101270.0,9.506e-05]
[1762299372690,0.62242105,101280.0,101270.0,9.506e-05]
[1762299373224,3.50144293,101280.0,101270.0,9.506e-05]
[1762299373979,3.53061815,101280.0,101270.0,9.506e-05]
[1762299374185,3.43106118,101280.0,101270.0,9.506e-05]
[1762299374521,3.40188596,101280.0,101270.0,9.506e-05]
[1762299378443,2.62242105,101280.0,101270.0,9.506e-05]
[1762299378693,3.20230155,101280.0,101270.0,9.506e-05]
[1762299379597,0.62242105,101280.0,101270.0,9.506e-05]
[1762299385182,0.56353877,101280.0,101270.0,0.20953691]
[1762299385357,0.36606642,101280.0,101270.0,0.22493691]
[1762299385558,0.00964642,101280.0,101270.0,0.24819691]
[1762299385789,0.00964642,101280.0,101270.0,0.82807741]
[1762299385964,0.00264642,101280.0,101270.0,0.82807741]
[1762299386167,0.00264642,101280.0,101270.0,0.86329358]
[1762299386573,0.00764642,101280.0,101270.0,0.86329358]
[1762299386773,0.00264642,101280.0,101270.0,0.86329358]
[1762299386997,0.00264642,101280.0,101270.0,0.9161869]
[1762299388509,0.00264642,101280.0,101270.0,0.3363064]
[1762299388721,0.00264642,101280.0,101270.0,0.9161869]
[1762299389127,0.00264642,101280.0,101270.0,0.93097073]
[1762299389985,0.00264642,101280.0,101270.0,1.25425969]
[1762299390196,0.00264642,101280.0,101270.0,1.32618495]
[1762299390412,0.00264642,101280.0,101270.0,1.29000267]
[1762299391668,0.00264642,101280.0,101270.0,1.28900267]
[1762299392082,0.00264642,101280.0,101270.0,1.29100267]
[1762299392355,0.00264642,101280.0,101270.0,1.33488267]
[1762299392586,0.00264642,101280.0,101270.0,1.21395741]
[1762299392793,0.00264642,101280.0,101270.0,1.26686897]
[1762299393010,0.00264642,101280.0,101270.0,0.72225061]
[1762299394652,0.00264642,101280.0,101270.0,0.72025061]
[1762299395078,0.00264642,101280.0,101270.0,0.72125061]
[1762299395417,0.00264642,101280.0,101270.0,1.30113111]
[1762299396015,0.00264642,101280.0,101270.0,0.47783905]
[1762299398519,0.00264642,101280.0,101270.0,0.53075061]
[1762299399337,0.00264642,101280.0,101270.0,0.47783905]
[1762299399662,0.00264642,101280.0,101270.0,1.11063111]
[1762299400018,0.00264642,101280.0,101270.0,0.96113111]
[1762299401371,0.00264642,101280.0,101270.0,0.90821955]
[1762299401574,0.00264642,101280.0,101270.0,0.38125061]
[1762299401913,0.00264642,101280.0,101270.0,0.32833905]
[1762299405033,0.20011877,101280.0,101270.0,0.32833905]
[1762299405819,0.20011877,101280.0,101270.0,0.29307691]
[1762299406028,0.21524877,101280.0,101270.0,0.05692506]
[1762299406200,0.23930877,101280.0,101270.0,0.00109506]
[1762299407063,0.04183642,101280.0,101270.0,0.19858691]
[1762299407355,0.21524877,101280.0,101270.0,0.20990691]
[1762299407533,0.01777642,101280.0,101270.0,0.20990691]
[1762299407732,0.01777642,101280.0,101270.0,0.22427691]
[1762299407917,0.00264642,101280.0,101270.0,0.24762691]
[1762299409677,0.00264642,101280.0,101270.0,0.82750741]
[1762299409918,0.00264642,101280.0,101270.0,0.86276955]
[1762299411951,0.00264642,101280.0,101270.0,0.91568111]
[1762299412939,0.00264642,101280.0,101270.0,0.88041897]
[1762299414206,0.20011877,101280.0,101270.0,0.30053847]
[1762299414532,0.23930877,101280.0,101270.0,0.29716487]
[1762299414754,0.21524877,101280.0,101270.0,0.29716487]
[1762299415202,0.20011877,101280.0,101270.0,0.31253487]
[1762299415417,0.23930877,101280.0,101270.0,0.05300662]
[1762299415635,0.23930877,101280.0,101270.0,0.0884151]
[1762299416064,0.23930877,101280.0,101270.0,0.28590695]
[1762299417418,0.23930877,101280.0,101270.0,0.23299539]
[1762299418915,0.04183642,101280.0,101270.0,0.23299539]
[1762299419337,0.00264642,101280.0,101270.0,0.25968539]
[1762299419469,0.00264642,101280.0,101270.0,0.86291589]
[1762299419670,0.00264642,101280.0,101270.0,0.88041897]
[1762299420094,0.00264642,101280.0,101270.0,0.33592713]
[1762299420304,0.23930877,101280.0,101270.0,0.03548372]
[1762299420520,0.81918927,101280.0,101270.0,9.506e-05]
[1762299420754,0.23930877,101280.0,101270.0,9.506e-05]
[1762299420959,0.88469106,101280.0,101270.0,9.506e-05]
[1762299421135,1.22469106,101280.0,101270.0,9.506e-05]
[1762299421542,3.22469106,101280.0,101270.0,9.506e-05]
[1762299421745,3.32424803,101280.0,101270.0,9.506e-05]
[1762299422128,3.32624803,101280.0,101270.0,9.506e-05]
[1762299422716,3.32424803,101280.0,101270.0,9.506e-05]
[1762299422953,3.33124803,101280.0,101270.0,9.506e-05]
[1762299423175,3.92960992,101280.0,101270.0,9.506e-05]
[1762299423384,2.6416449,101280.0,101270.0,9.506e-05]
[1762299423593,3.20237155,101280.0,101270.0,9.506e-05]
[1762299425880,2.62249105,101280.0,101270.0,9.506e-05]
[1762299426092,0.62249105,101280.0,101270.0,9.506e-05]
[1762299428051,1.20237155,101280.0,101270.0,9.506e-05]
[1762299428694,0.62249105,101280.0,101270.0,9.506e-05]
[1762299428903,1.20237155,101280.0,101270.0,9.506e-05]
[1762299429105,0.62249105,101280.0,101270.0,9.506e-05]
[1762299430445,0.00964642,101280.0,101270.0,0.24919691]
[1762299431503,0.00264642,101280.0,101270.0,0.24919691]
[1762299431900,0.00464642,101280.0,101270.0,0.28458557]
[1762299432306,0.00464642,101280.0,101270.0,0.86446607]
[1762299433527,0.00464642,101280.0,101270.0,0.28458557]
[1762299433766,0.00464642,101280.0,101270.0,0.86446607]
[1762299435041,0.00464642,101280.0,101270.0,0.28458557]
[1762299435426,0.20211877,101280.0,101270.0,0.28458557]
[1762299435639,0.24246877,101280.0,101270.0,0.23297557]
[1762299435841,0.24246877,101280.0,101270.0,0.19758691]
[1762299436245,0.02130642,101280.0,101270.0,0.20835691]
[1762299436447,0.00464642,101280.0,101270.0,0.82837741]
[1762299436632,0.00464642,101280.0,101270.0,0.86376607]
[1762299437096,0.00464642,101280.0,101270.0,0.91667763]
[1762299437451,0.00464642,101280.0,101270.0,0.86376607]
[1762299437672,0.00464642,101280.0,101270.0,0.91667763]
[1762299439143,0.82234927,101280.0,101270.0,0.03548372]
[1762299439291,1.26190624,101280.0,101270.0,9.506e-05]
[1762299439493,0.68202574,101280.0,101270.0,9.506e-05]
[1762299439700,1.16234927,101280.0,101270.0,9.506e-05]
[1762299439898,1.19316628,101280.0,101270.0,9.506e-05]
[1762299440102,0.58246877,101280.0,101270.0,9.506e-05]
[1762299440269,1.16234927,101280.0,101270.0,9.506e-05]
[1762299440475,0.58246877,101280.0,101270.0,9.506e-05]
[1762299443852,0.68202574,101280.0,101270.0,9.506e-05]
[1762299444230,3.62705221,101280.0,101270.0,9.506e-05]
[1762299444373,0.66249105,101280.0,101270.0,9.506e-05]
[1762299445208,0.66049105,101280.0,101270.0,9.506e-05]
[1762299446618,0.66649105,101280.0,101270.0,9.506e-05]
[1762299447800,0.66649105,101280.0,101270.0,0.19758691]
[1762299447801,0.63030877,101280.0,101270.0,0.19758691]
[1762299447999,0.58646877,101280.0,101270.0,0.19758691]
[1762299448231,0.34864642,101280.0,101270.0,0.24974691]
[1762299449388,0.34264642,101280.0,101270.0,0.24974691]
[1762299449733,0.54411877,101280.0,101270.0,0.22502691]
[1762299449938,0.58446877,101280.0,101270.0,9.506e-05]
[1762299451130,0.58446877,101280.0,101270.0,0.19758691]
[1762299451260,0.36330642,101280.0,101270.0,0.20960691]
[1762299451733,0.34664642,101280.0,101270.0,0.24974691]
[1762299452419,0.00664642,101280.0,101270.0,0.24974691]
[1762299452652,0.00664642,101280.0,101270.0,1.02938788]
[1762299452775,0.00664642,101280.0,101270.0,1.06477654]
[1762299452973,0.00664642,101280.0,101270.0,1.1176881]
[1762299453599,0.00264642,101280.0,101270.0,1.1176881]
[1762299454001,0.00364642,101280.0,101270.0,1.1176881]
[1762299454227,0.00264642,101280.0,101270.0,1.1176881]
[1762299454627,0.00264642,101280.0,101270.0,1.1186881]
[1762299457598,0.00264642,101280.0,101270.0,1.06577654]
[1762299458230,0.00264642,101280.0,101270.0,0.28613557]
[1762299459409,0.20011877,101280.0,101270.0,0.26141557]
[1762299459634,0.21578877,101280.0,101270.0,0.24599557]
[1762299460214,0.21578877,101280.0,101270.0,0.29890713]
[1762299460934,0.23884877,101280.0,101270.0,0.03648372]
[1762299461109,0.21578877,101280.0,101270.0,0.19858691]
[1762299461544,0.00264642,101280.0,101270.0,1.06383654]
[1762299461767,0.20968432,101310.0,101300.0,0.19743336]
[1762299461768,0.0004,101310.0,101300.0,0.19743336]
[1762299461977,0.0004,101310.0,101300.0,1.20993892]
[1762299462213,0.0004,101310.0,101300.0,1.19754637]
[1762299462419,0.0004,101310.0,101300.0,1.26522265]
[1762299463001,0.0004,101320.0,101310.0,0.19741387]
[1762299463238,0.0004,101320.0,101310.0,1.07993204]
[1762299463479,0.0004,101320.0,101310.0,1.12993204]
[1762299464264,1e-08,101320.0,101310.0,1.4700271]
[1762299464478,1e-08,101320.0,101310.0,1.53571923]
[1762299464704,1e-08,101320.0,101310.0,1.54967035]
[1762299465714,1e-08,101320.0,101310.0,1.54767035]
[1762299465913,1e-08,101320.0,101310.0,1.55067035]
[1762299466340,1e-08,101320.0,101310.0,1.54767035]
[1762299466507,1e-08,101320.0,101310.0,1.64071596]
[1762299466722,1e-08,101320.0,101310.0,1.56228369]
[1762299466926,1e-08,101320.0,101310.0,1.5522837]
[1762299467168,1e-08,101320.0,101310.0,1.56228369]
[1762299467594,1e-08,101320.0,101310.0,0.78264272]
[1762299467879,0.00080165,101320.0,101310.0,1.56228369]
[1762299468081,1.65e-06,101320.0,101310.0,0.78264272]
[1762299468234,0.0002,101340.0,101330.0,0.58737491]
[1762299468437,0.0002,101340.0,101330.0,1.60558956]
[1762299468636,0.00070082,101340.0,101330.0,1.57591128]
[1762299468874,0.00070082,101340.0,101330.0,1.63861538]
[1762299469303,0.00070082,101340.0,101330.0,1.5859771]
[1762299469661,0.00070082,101340.0,101330.0,1.5869771]
[1762299470304,0.00070082,101340.0,101330.0,1.55188492]
[1762299470516,0.00070082,101340.0,101330.0,1.5859771]
[1762299470723,0.0004,101350.0,101340.0,0.24735543]
[1762299470920,0.0004,101350.0,101340.0,1.0652364]
[1762299471122,0.0004,101350.0,101340.0,0.23559543]
[1762299472396,0.0004,101350.0,101340.0,0.23859543]
[1762299472720,0.0004,101350.0,101340.0,0.23559543]
[1762299472901,0.0004,101350.0,101340.0,0.23659543]
[1762299473126,0.0004,101350.0,101340.0,0.23559543]
[1762299474297,0.19773596,101350.0,101340.0,0.23559543]
[1762299474652,0.0004,101350.0,101340.0,0.23559543]
[1762299474855,0.19773596,101350.0,101340.0,0.23559543]
[1762299475875,0.0004,101350.0,101340.0,0.23559543]
[1762299476460,0.00065036,101350.0,101340.0,0.23559543]
[1762299476628,0.19798632,101350.0,101340.0,0.23559543]
[1762299477286,0.00065036,101350.0,101340.0,0.23559543]
[1762299477748,0.00065036,101350.0,101340.0,1.0152364]
[1762299478956,0.00065036,101350.0,101340.0,0.23559543]
[1762299479725,0.00065036,101350.0,101340.0,0.23659543]
[1762299481031,0.00065036,101350.0,101340.0,1.0162364]
[1762299481241,0.00065036,101350.0,101340.0,1.0662364]
[1762299481429,0.0002,101360.0,101350.0,0.97697693]
[1762299481666,0.0002,101360.0,101350.0,1.51845015]
[1762299482269,0.0002,101360.0,101350.0,1.49445015]
[1762299482474,0.0002,101360.0,101350.0,1.54445015]
[1762299482678,0.00068426,101360.0,101350.0,1.54445015]
[1762299482833,1e-08,101360.0,101350.0,1.49445015]
[1762299482999,1e-08,101360.0,101350.0,1.59758179]
[1762299483202,1e-08,101360.0,101350.0,0.77175855]
[1762299483441,1e-08,101360.0,101350.0,1.55139952]
[1762299484479,1e-08,101360.0,101350.0,0.77175855]
[1762299484680,1e-08,101360.0,101350.0,1.49745015]
[1762299485340,1e-08,101360.0,101350.0,1.49445015]
[1762299485753,1e-08,101360.0,101350.0,1.15545015]
[1762299487219,0.00025034,101360.0,101350.0,1.15545015]
[1762299487425,0.00025034,101360.0,101350.0,0.33200918]
[1762299487752,0.00025034,101360.0,101350.0,0.37580918]
[1762299487887,0.00025034,101360.0,101350.0,0.35284918]
[1762299487888,0.19756683,101360.0,101350.0,0.35284918]
[1762299488296,0.01587034,101360.0,101350.0,0.33756918]
[1762299488495,0.00025034,101360.0,101350.0,0.35184918]
[1762299488700,0.00025034,101360.0,101350.0,0.37480918]
[1762299488933,0.00015034,101360.0,101350.0,0.37480918]
[1762299491192,0.00015034,101360.0,101350.0,0.40990136]
[1762299492502,0.21271683,101360.0,101350.0,0.27622814]
[1762299492726,0.23553683,101360.0,101340.0,0.23244761]
[1762299492923,0.24707596,101350.0,101330.0,0.45524733]
[1762299493091,0.24707596,101350.0,101330.0,0.40260905]
[1762299493351,1.0150664,101340.0,101330.0,0.03509218]
[1762299493550,0.60493404,101340.0,101320.0,0.29420761]
[1762299493755,0.22429491,101330.0,101320.0,0.28275761]
[1762299493958,0.24711491,101330.0,101320.0,0.28275761]
[1762299494155,0.24711491,101330.0,101310.0,0.37522502]
[1762299494366,0.24711491,101330.0,101310.0,0.31271605]
[1762299494596,0.24711491,101330.0,101310.0,0.27762387]
[1762299494780,0.21264439,101320.0,101310.0,0.25287387]
[1762299494987,0.23546439,101320.0,101310.0,0.0438]
[1762299495186,0.23546439,101320.0,101300.0,0.34263876]
[1762299495400,0.19741387,101310.0,101300.0,0.30754658]
[1762299495604,0.20908387,101310.0,101300.0,0.28279658]
[1762299495893,0.24715387,101310.0,101300.0,0.08584748]
[1762299496095,0.04974,101310.0,101300.0,0.28328084]
[1762299496276,0.02692,101310.0,101300.0,0.28328084]
[1762299496490,0.22433387,101310.0,101300.0,0.28328084]
[1762299497124,0.01167,101310.0,101300.0,0.29934084]
[1762299497681,0.22433387,101310.0,101300.0,0.08584748]
[1762299498046,0.24715387,101310.0,101300.0,0.08584748]
[1762299498281,0.24715387,101310.0,101300.0,0.28328084]
[1762299498462,0.24715387,101310.0,101300.0,0.08584748]
[1762299499421,0.24715387,101310.0,101300.0,0.00048426]
[1762299499844,1.02679484,101310.0,101300.0,0.00048426]
[1762299500278,0.24715387,101310.0,101300.0,0.00048426]
[1762299501279,0.25215387,101310.0,101300.0,0.00048426]
[1762299501480,0.25215387,101310.0,101300.0,0.08584748]
[1762299501795,0.25215387,101310.0,101300.0,0.00048426]
[1762299502326,1.2078926,101310.0,101300.0,0.00048426]
[1762299502905,0.62833615,101310.0,101300.0,0.00048426]
[1762299503103,0.59215387,101310.0,101300.0,0.00048426]
[1762299503707,1.2078926,101310.0,101300.0,0.00048426]
[1762299504355,0.62833615,101310.0,101300.0,0.00048426]
[1762299504575,1.2078926,101310.0,101300.0,0.00048426]
[1762299508966,0.62833615,101310.0,101300.0,0.00048426]
[1762299509166,1.2078926,101310.0,101300.0,0.00192585]
[1762299512270,3.2078926,101310.0,101300.0,0.00192585]
[1762299512424,3.23739554,101310.0,101300.0,0.00192585]
[1762299512824,3.2078926,101310.0,101300.0,0.00192585]
[1762299513593,3.23739554,101310.0,101300.0,0.00192585]
[1762299518975,3.02831167,101310.0,101300.0,0.00192585]
[1762299519195,3.22572554,101310.0,101300.0,0.00192585]
[1762299519437,3.04347564,101310.0,101300.0,0.00192585]
[1762299519836,2.81566297,101310.0,101300.0,0.00192585]
[1762299520040,2.593497,101310.0,101300.0,0.00192585]
[1762299520243,0.24125387,101310.0,101300.0,0.00192585]
[1762299520446,0.79316928,101310.0,101300.0,0.00192585]
[1762299520604,0.77697032,101310.0,101300.0,0.00192585]
[1762299520966,2.19741387,101310.0,101300.0,0.00192585]
[1762299521127,0.19741387,101310.0,101300.0,0.00192585]
[1762299521331,0.20662004,101310.0,101300.0,0.00192585]
[1762299521645,0.20293076,101310.0,101300.0,0.00192585]
[1762299522582,0.56136758,101310.0,101300.0,0.00192585]
[1762299523975,1.13542602,101310.0,101300.0,0.00192585]
[1762299524581,3.28116526,101310.0,101300.0,0.00192585]